Cogmind - Beta 14 @@@ ROGUE MODE // 2024.12.29 @ 14:25:21 Player: Fazzonamite Result: Destroyed by C-35 Carver with Carbide Saw Performance ------------- Evolutions (6) 3000 Regions Visited (11) 2200 Robots Destroyed (56) 280 Value Destroyed (1819) 1819 Prototype IDs (1) 20 Alien Tech Used (0) 0 Bonus (1367) 1367 TOTAL SCORE: 8686 Bonus ------- High Alert Combat Kills 22 Follower Combat Kills 1345 Cogmind --------- Core Integrity 0/1150 Matter 300/300 Energy 100/100 System Corruption 9% Temperature Cool (0) Movement Core (50) Location -4/Hub_04(d) Parts ------- > --- POWER (2) -------- (None) > --- PROPULSION (4) --- (None) > --- UTILITY (10) ----- Advanced Signal Interpreter > --- WEAPON (3) ------- (None) > --- INVENTORY (5) ---- Advanced Cryofiber Web Compact Matter Pod (150) Advanced Reaction Control System Medium Regenerative Plating Improved System Shield Peak State ------------ > --- POWER ------------ Improved Ion Engine Reinforced Fission Core > --- PROPULSION ------- Heavy Treads Heavy Treads > --- UTILITY ---------- Advanced Cooling System Medium Storage Unit Structural Scanner Machine Analyzer Long-range Sensor Array Advanced Signal Interpreter Improved Hacking Suite Advanced Hacking Suite System Shield Advanced System Shield > --- WEAPON ----------- KE Penetrator Railgun Improved Remote Datajack > --- INVENTORY -------- Light Nuclear Core VTOL Module VTOL Module VTOL Module VTOL Module Advanced Cryofiber Web Compact Matter Pod Advanced Reaction Control System Medium Regenerative Plating Phasing Sabre [Rating: 98] Favorites ----------- Power Reinforced Deuterium Engine Engine Reinforced Deuterium Engine Power Core Light Nuclear Core Propulsion Compact Wheel Treads Heavy Treads Wheel Compact Wheel Flight Unit VTOL Module Utility Structural Scanner Device Structural Scanner Storage Huge Storage Unit Processor Machine Analyzer Hackware Advanced System Shield Protection Light Armor Plating Weapon Autogun Energy Gun Medium Laser Ballistic Gun Autogun Special Weapon Improved Remote Datajack Slashing Weapon Phasing Sabre Special Melee Weapon Datajack Build | -11 -10 -9 -8 -7 -6 -5 -4 -4 -4 -4 -4 ------- Run | Yrd Mat Mat Mat Fac Fac Fac Fac Ext Cet Arc Hub Slots Evolved 12 | . . 2 2 2 2 2 2 . . . . Power 1 | . . . . . 1 . . . . . . Propulsion 2 | . . . 1 1 . . . . . . . Utility 8 | . . 2 1 1 1 1 2 . . . . Weapon 1 | . . . . . . 1 . . . . . Parts Attached 125 | 6 3 22 16 4 6 17 18 24 4 5 . Power 15 | 1 . 3 3 . 2 1 1 4 . . . Engine 11 | 1 . 3 2 . 2 1 . 2 . . . Core 4 | . . . 1 . . . 1 2 . . . Reactor . | . . . . . . . . . . . . Propulsion 27 | 2 . 4 5 . 2 5 2 5 . 2 . Treads 6 | . . . 3 . . 1 . 2 . . . Leg . | . . . . . . . . . . . . Wheel 14 | 2 . 4 2 . 2 4 . . . . . Hover . | . . . . . . . . . . . . Flight 7 | . . . . . . . 2 3 . 2 . Utility 56 | 1 3 11 6 4 1 7 12 8 2 1 . Device 34 | 1 1 6 3 3 1 5 8 4 1 1 . Storage 2 | . 1 . . . . . . 1 . . . Processor 7 | . . 2 . 1 . 2 1 1 . . . Hackware 5 | . . . . . . . 3 2 . . . Protection 8 | . 1 3 3 . . . . . 1 . . Artifact . | . . . . . . . . . . . . Weapon 27 | 2 . 4 2 . 1 4 3 7 2 2 . Energy Gun 6 | 1 . 1 . . 1 2 1 . . . . Energy Cannon . | . . . . . . . . . . . . Ballistic Gun 11 | 1 . 3 2 . . 2 . 3 . . . Ballistic Cannon . | . . . . . . . . . . . . Launcher . | . . . . . . . . . . . . Special Weapon 4 | . . . . . . . . 3 1 . . Impact Weapon . | . . . . . . . . . . . . Slashing Weapon 4 | . . . . . . . . 1 1 2 . Piercing Weapon . | . . . . . . . . . . . . Special Melee Weapon 2 | . . . . . . . 2 . . . . Unidentified Prototypes 1 | . . . . . . . . . 1 . . Parts Lost 46 | . 1 7 9 . 1 5 11 2 2 1 7 Power 6 | . . 1 2 . . . 2 . . . 1 Propulsion 16 | . . 4 2 . . 3 3 . 1 1 2 Utility 18 | . 1 2 3 . . . 5 2 1 . 4 Weapon 6 | . . . 2 . 1 2 1 . . . . Highest Loss Streak 10 | . 1 4 9 . 1 3 10 1 2 1 7 To Critical Strikes . | . . . . . . . . . . . . Average Slot Usage (%) 83 | . 98 98 92 75 74 93 87 64 65 76 40 Engine 7 | . 14 11 2 7 8 11 6 4 . . . Treads 2 | . . . 12 . . 1 . 6 . . . Wheel 11 | . 28 21 10 7 6 15 17 . . . . Device 18 | . 9 17 22 22 24 25 19 11 12 15 5 Storage 6 | . 9 11 9 7 6 5 3 3 5 5 1 Processor 11 | . . 10 9 15 13 14 14 12 10 10 10 Hackware 5 | . . . . . . . 9 16 21 21 13 Protection 1 | . 7 3 2 . . . . . . . . Energy Gun 3 | . 14 9 . . 1 5 2 . . . . Ballistic Gun 10 | . 14 12 18 15 11 10 7 4 . . . Peak Build Rating 98 | 6 10 14 22 27 39 58 64 98 70 73 71 Average Rating 38 | 4 8 12 18 25 32 51 54 63 61 70 42 On Entrance 33 | . 6 10 14 20 27 39 55 27 68 64 71 Naked Turns . | . . . . . . . . . . . . Heaviest Build 125 | 7 89 98 94 96 118 125 125 56 22 23 23 Greatest Support 140 | 26 26 32 62 16 36 52 58 140 23 23 23 Greatest Overweight (x) 12 | . 3 5 5 5 7 12 2 1 1 . . Average Overweight (x) 2 | . 1 3 1 5 5 3 . . . . . Largest Inventory Capacity 25 | 5 25 25 25 25 25 25 25 10 10 10 10 Average Capacity 20 | 5 19 25 25 25 25 25 20 8 10 10 6 Most Carried 25 | 5 25 25 25 25 25 25 25 10 10 10 9 Average Carried 18 | 3 13 22 24 23 24 24 18 7 9 8 6 Final Capacity 25 | 5 25 25 25 25 25 25 5 10 10 10 5 Final Carried 25 | 5 25 25 25 25 25 24 5 10 10 9 5 Class Distribution -------------------- 46% | Scavenger-Skirmisher 14% | Mutant 13% | Hacker-Mutant 10% | Scavenger-Mutant 7% | Scavenger-Gunner 5% | Hacker-Scout Dominant Class ---------------- Mutant | -10/Materials Scavenger-Mutant | -9/Materials Scavenger-Skirmisher | -8/Materials Scavenger-Skirmisher | -7/Factory Scavenger-Skirmisher | -6/Factory Scavenger-Skirmisher | -5/Factory Scavenger-Skirmisher | -4/Factory Hacker-Mutant | -4/Extension Hacker-Scout | -4/Cetus Hacker-Scout | -4/Archives Hacker-Mutant | -4/Hub_04(d) Resources | -11 -10 -9 -8 -7 -6 -5 -4 -4 -4 -4 -4 ----------- Run | Yrd Mat Mat Mat Fac Fac Fac Fac Ext Cet Arc Hub Matter Collected 2622 | 267 58 285 313 66 101 558 155 714 38 67 . Remotely . | . . . . . . . . . . . . Salvage Created 2490 | 118 446 413 325 . 101 742 150 128 . 67 . Parts 147 | 6 33 21 21 . 9 35 8 12 . 2 . Haulers Intercepted 2 | . 1 . 1 . . . . . . . . Recyclers Shooed 7 | . . 2 . . . 1 4 . . . . Parts Field Recycled . | . . . . . . . . . . . . Retrieved Matter . | . . . . . . . . . . . . Parts Self-Destructed . | . . . . . . . . . . . . Prevented . | . . . . . . . . . . . . Kills | -11 -10 -9 -8 -7 -6 -5 -4 -4 -4 -4 -4 ------- Run | Yrd Mat Mat Mat Fac Fac Fac Fac Ext Cet Arc Hub Combat Hostiles Destroyed 31 | . 6 6 5 . 1 9 2 2 . . . Guns 31 | . 6 6 5 . 1 9 2 2 . . . Classes Destroyed 13 | 2 5 2 1 . 1 2 . . . . . Worker 1 | . . . . . . 1 . . . . . Builder 5 | . 2 . . . . 1 . 2 . . . Tunneler 3 | 1 1 . . . 1 . . . . . . Hauler 2 | . 1 . 1 . . . . . . . . Recycler 4 | 1 1 1 . . . 1 . . . . . Operator 3 | . . 1 . . . . . . . 2 . Watcher 7 | . 2 2 . . 1 1 1 . . . . Swarmer 4 | . 3 . . . . . . 1 . . . Grunt 14 | . 3 2 2 . . 6 . 1 . . . Sentry 7 | . . 4 2 . . 1 . . . . . Hunter 1 | . . . . . 1 . . . . . . Programmer 4 | . . . . . . 2 2 . . . . Heavy 1 | . . . 1 . . . . . . . . Best Kill Streak 4 | 1 4 3 3 . 1 3 2 1 . 1 . Combat Bots Only 3 | . 3 2 3 . 1 2 2 1 . . . Max Kills in Single Turn 1 | 1 1 1 1 . 1 1 1 1 . 1 . Gunslinging . | . . . . . . . . . . . . Exploded . | . . . . . . . . . . . . Melee . | . . . . . . . . . . . . Uniques/NPCs Destroyed . | . . . . . . . . . . . . Combat | -11 -10 -9 -8 -7 -6 -5 -4 -4 -4 -4 -4 -------- Run | Yrd Mat Mat Mat Fac Fac Fac Fac Ext Cet Arc Hub Hostile Shots Fired 404 | . 24 65 80 . 36 57 87 7 4 7 37 Missed 132 | . 5 13 27 . 10 13 43 2 1 3 15 Damage Taken 5172 | . 226 713 1134 . 335 648 1125 137 90 107 657 Core 1498 | . 39 141 49 . 54 58 468 69 30 49 541 Absorbed by Shields 401 | . . . . . 124 234 . 43 . . . Core Remaining (%) 89 | 100 84 64 91 100 93 94 . . . . . Volleys Fired 218 | 7 33 47 28 . 16 41 19 26 1 . . Largest 3 | 2 2 2 2 . 2 3 3 2 1 . . Hottest 130 | 70 70 70 48 . 79 130 130 68 7 . . Shots Fired 457 | 14 66 94 56 . 32 114 48 32 1 . . Gun 443 | 14 66 94 56 . 32 114 48 19 . . . Cannon . | . . . . . . . . . . . . Launcher . | . . . . . . . . . . . . Special 14 | . . . . . . . . 13 1 . . Kinetic 317 | 7 33 56 56 . 27 81 38 19 . . . Thermal 126 | 7 33 38 . . 5 33 10 . . . . Explosive . | . . . . . . . . . . . . Electromagnetic . | . . . . . . . . . . . . Robot Hit Streak 17 | 5 17 14 13 . 11 9 8 9 . . . Robot Miss Streak 7 | 1 3 3 3 . 7 3 3 2 . . . Penetration Max 1 | . . . . . . 1 1 . . . . Secondary Targets 4 | . 1 1 1 . . . 1 . . . . Max Gunslinging Chain 1 | . 1 1 1 . . . 1 . . . . Shots Hit Robots 319 | 10 45 68 44 . 17 76 32 23 . 3 1 Core Hits 114 | 3 20 21 15 . 9 32 9 4 . 1 . Critical Kills 5 | . . 1 . . 1 1 1 1 . . . Critical Parts Destroyed 3 | . . . . . . 1 2 . . . . Critical Strikes 16 | . 3 5 . . 1 3 3 1 . . . Burn 8 | . 3 4 . . . 1 . . . . . Destroy 8 | . . 1 . . 1 2 3 1 . . . Melee Attacks 8 | . . . . . . . . . 2 3 3 Impact . | . . . . . . . . . . . . Slashing 8 | . . . . . . . . . 2 3 3 Piercing . | . . . . . . . . . . . . Sneak Attacks 2 | . . . . . . . . . . 2 . Combat Hostiles . | . . . . . . . . . . . . Follow-up Attacks . | . . . . . . . . . . . . Damage Inflicted 5468 | 98 471 797 697 . 217 1644 922 314 . 263 45 Guns 5147 | 98 471 797 697 . 217 1644 909 314 . . . Cannons . | . . . . . . . . . . . . Explosions . | . . . . . . . . . . . . Melee 305 | . . . . . . . . . . 263 42 Ramming 16 | . . . . . . . 13 . . . 3 Kinetic 3911 | 48 147 411 697 . 160 1390 744 314 . . . Thermal 1236 | 50 324 386 . . 57 254 165 . . . . Explosive . | . . . . . . . . . . . . Electromagnetic . | . . . . . . . . . . . . Impact . | . . . . . . . . . . . . Slashing 305 | . . . . . . . . . . 263 42 Piercing . | . . . . . . . . . . . . Highest Corruption 9 | . . . . 1 . 1 5 8 8 8 9 Average Corruption 3 | . . . . 1 . 1 2 5 8 7 7 Corruption Purged 1 | . . . . . . . . . . 1 . Corruption Blocked . | . . . . . . . . . . . . Effects 40 | . . . . 4 . 6 2 21 3 2 2 Message Errors 10 | . . . . 1 . 2 . 6 . 1 . Matter Fused 11 | . . . . 1 . 2 1 5 1 1 . Heat Flow Errors 4 | . . . . 1 . . . 1 1 . 1 Energy Discharges 2 | . . . . . . . 1 1 . . . Parts Rejected 2 | . . . . . . . . 1 . . 1 Parts Fused 1 | . . . . . . . . 1 . . . Data Loss (minor) 6 | . . . . . . . . 5 1 . . Misfires 1 | . . . . . . . . 1 . . . Alerts 2 | . . . . 1 . 1 . . . . . Weapon Failures 1 | . . . . . . 1 . . . . . Overload Shots . | . . . . . . . . . . . . Overflow Damage 158 | . . . . . . . . . . 156 2 Projectiles . | . . . . . . . . . . . . Explosions . | . . . . . . . . . . . . Melee 158 | . . . . . . . . . . 156 2 Knockbacks . | . . . . . . . . . . . . Impact . | . . . . . . . . . . . . Kinetic . | . . . . . . . . . . . . Secondary . | . . . . . . . . . . . . Self-Inflicted Damage 7 | . . . . . . . 6 . . . 1 Shots . | . . . . . . . . . . . . Rammed 9 | . . . . . . . 6 . . . 3 Targets Rammed 9 | . . . . . . . 6 . . . 3 Kicked . | . . . . . . . . . . . . Crushed . | . . . . . . . . . . . . Highest Temperature 360 | 50 158 360 181 214 10 270 252 163 182 . 271 Average Temperature 75 | 24 67 95 73 109 7 68 74 98 101 . 151 Received Heat Transfer 1055 | . 87 234 423 . . 160 94 9 18 18 12 Effects 4 | . . 3 . . . 1 . . . . . Shutdowns 1 | . . 1 . . . . . . . . . Energy Bleed 1 | . . . . . . 1 . . . . . Interference 2 | . . 2 . . . . . . . . . Siege Activations . | . . . . . . . . . . . . Robots Corrupted . | . . . . . . . . . . . . Combat Hostiles . | . . . . . . . . . . . . Parts Fried . | . . . . . . . . . . . . Impact Corruptions . | . . . . . . . . . . . . Robots Melted . | . . . . . . . . . . . . Combat Hostiles . | . . . . . . . . . . . . Parts Melted 9 | . 1 6 . . . 2 . . . . . Heat Transferred 3885 | 148 1184 1443 . . 148 666 296 . . . . Parts Sabotaged . | . . . . . . . . . . . . Parts Stolen . | . . . . . . . . . . . . Parts Stripped . | . . . . . . . . . . . . Power Chain Reactions . | . . . . . . . . . . . . Alert | -11 -10 -9 -8 -7 -6 -5 -4 -4 -4 -4 -4 ------- Run | Yrd Mat Mat Mat Fac Fac Fac Fac Ext Cet Arc Hub Peak Influence 630 | 10 227 131 169 15 30 215 221 630 313 289 166 Initial 313 | . 6 11 55 . . 14 63 52 313 120 100 Average 132 | 3 125 66 120 6 5 90 90 371 289 250 126 Maximum Alert Level 2 | . 1 . . . . 1 1 2 1 1 . Low Security (%) 77 | 100 70 100 100 100 100 94 95 19 . 18 100 Level 1 15 | . 29 . . . . 5 4 41 100 81 . Level 2 6 | . . . . . . . . 38 . . . Level 3 . | . . . . . . . . . . . . Level 4 . | . . . . . . . . . . . . Level 5 . | . . . . . . . . . . . . High Security . | . . . . . . . . . . . . Max Security . | . . . . . . . . . . . . Squads Dispatched 11 | . . 1 1 . . 3 3 2 . . 1 Investigation 3 | . . . . . . 1 2 . . . . Extermination 3 | . . . . . . 2 1 . . . . Reinforcement 5 | . . 1 1 . . . . 2 . . 1 Assault . | . . . . . . . . . . . . Garrison . | . . . . . . . . . . . . Intercept . | . . . . . . . . . . . . Searches Triggered . | . . . . . . . . . . . . Construction Impeded 2 | . . . . . . . . 2 . . . Haulers Reinforced . | . . . . . . . . . . . . Active Scanning Responses . | . . . . . . . . . . . . Cargo Convoy Interrupts . | . . . . . . . . . . . . Stealth | -11 -10 -9 -8 -7 -6 -5 -4 -4 -4 -4 -4 --------- Run | Yrd Mat Mat Mat Fac Fac Fac Fac Ext Cet Arc Hub Distress Signals 5 | . 1 1 1 . . . . 1 1 . . Communications Jammed . | . . . . . . . . . . . . Distress Signals . | . . . . . . . . . . . . Times Spotted 115 | . 9 16 10 1 6 15 16 20 5 5 12 Peak Tracking Total 9 | . 3 4 5 1 2 3 9 5 5 2 9 Tactical Retreats 9 | . 1 1 1 . . 1 3 . . . 2 Traps | -11 -10 -9 -8 -7 -6 -5 -4 -4 -4 -4 -4 ------- Run | Yrd Mat Mat Mat Fac Fac Fac Fac Ext Cet Arc Hub Traps Triggered 11 | . . 1 . 1 . 2 . 7 . . . Indirectly . | . . . . . . . . . . . . Trap Hack Attempts 49 | . . . . . . . 49 . . . . Triggered . | . . . . . . . . . . . . Disarmed . | . . . . . . . . . . . . Reprogrammed 3 | . . . . . . . 3 . . . . Reused . | . . . . . . . . . . . . Traps Extracted . | . . . . . . . . . . . . Installed . | . . . . . . . . . . . . Triggered . | . . . . . . . . . . . . Machines | -11 -10 -9 -8 -7 -6 -5 -4 -4 -4 -4 -4 ---------- Run | Yrd Mat Mat Mat Fac Fac Fac Fac Ext Cet Arc Hub Machines Disabled 9 | . . . . . . . 1 2 2 2 2 Max in Single Turn 1 | . . . . . . . . . 1 . . Garrison Access 2 | . . . . . . 1 . . . . 1 Machines Repaired . | . . . . . . . . . . . . Machines Dismantled . | . . . . . . . . . . . . Machines Sabotaged . | . . . . . . . . . . . . Overloaded Fab Kills . | . . . . . . . . . . . . Hacking | -11 -10 -9 -8 -7 -6 -5 -4 -4 -4 -4 -4 --------- Run | Yrd Mat Mat Mat Fac Fac Fac Fac Ext Cet Arc Hub Machines Accessed 37 | . 3 4 1 2 1 4 3 13 2 1 3 Terminals 30 | . 3 3 1 . 1 3 2 13 2 . 2 Fabricators . | . . . . . . . . . . . . Repair Stations . | . . . . . . . . . . . . Recycling Units 1 | . . 1 . . . . . . . . . Scanalyzers . | . . . . . . . . . . . . Garrison Access 5 | . . . . 2 . 1 1 . . . 1 Total Hacks 78 | . 3 6 2 4 1 11 7 30 3 1 10 Successful 43 | . 2 3 1 . 1 5 3 16 3 1 8 Failed 35 | . 1 3 1 4 . 6 4 14 . . 2 Catastrophic 6 | . 1 1 . 1 . 1 2 . . . . Database Lockouts . | . . . . . . . . . . . . Manual 47 | . 3 5 2 2 1 9 5 15 . . 5 Terminals 68 | . 3 5 2 . 1 9 6 30 3 . 9 Fabricators . | . . . . . . . . . . . . Repair Stations . | . . . . . . . . . . . . Recycling Units 1 | . . 1 . . . . . . . . . Scanalyzers . | . . . . . . . . . . . . Garrison Access 8 | . . . . 4 . 2 1 . . . 1 Terminal Hacks 20 | . . . . . . . 1 10 3 1 5 Record 3 | . . . . . . . . . 2 1 . Open Door 10 | . . . . . . . 1 8 1 . . Level Access Points 1 | . . . . . . . . . . . 1 Branch Access Points 2 | . . . . . . . . 1 . . 1 Alert Level 1 | . . . . . . . . . . . 1 Locate Traps 1 | . . . . . . . . . . . 1 Zone Layout 2 | . . . . . . . . 1 . . 1 Fabricator Hacks . | . . . . . . . . . . . . Repair Station Hacks . | . . . . . . . . . . . . Recycling Unit Hacks 1 | . . 1 . . . . . . . . . Report Inventory 1 | . . 1 . . . . . . . . . Scanalyzer . | . . . . . . . . . . . . Garrison Access Hacks 2 | . . . . . . 1 . . . . 1 Seal Access 2 | . . . . . . 1 . . . . 1 Unauthorized Hacks 20 | . 2 2 1 . 1 4 2 6 . . 2 Terminals 19 | . 2 2 1 . 1 4 1 6 . . 2 Assimilate 1 | . . . . . . 1 . . . . . Botnet 17 | . 2 2 1 . 1 3 1 5 . . 2 Operators 1 | . . . . . . . . 1 . . . Fabricators . | . . . . . . . . . . . . Repair Stations . | . . . . . . . . . . . . Recycling Units . | . . . . . . . . . . . . Scanalyzers . | . . . . . . . . . . . . Garrison Access 1 | . . . . . . . 1 . . . . Reprogram 1 | . . . . . . . 1 . . . . Data Cores Recovered . | . . . . . . . . . . . . Used . | . . . . . . . . . . . . Hacking Detections 15 | . 1 3 1 2 . 3 1 4 . . . Full Trace Events 1 | . . . . . . . 1 . . . . Feedback Events . | . . . . . . . . . . . . Feedback Blocked . | . . . . . . . . . . . . Robot Schematics Acquired . | . . . . . . . . . . . . Robots Built . | . . . . . . . . . . . . Authchips . | . . . . . . . . . . . . Time . | . . . . . . . . . . . . Total Robot Build Rating . | . . . . . . . . . . . . Part Schematics Acquired . | . . . . . . . . . . . . Parts Built . | . . . . . . . . . . . . Authchips . | . . . . . . . . . . . . Time . | . . . . . . . . . . . . Total Part Build Rating . | . . . . . . . . . . . . Parts Repaired . | . . . . . . . . . . . . Time . | . . . . . . . . . . . . Parts Recycled . | . . . . . . . . . . . . Recycled Matter . | . . . . . . . . . . . . Retrieved Matter . | . . . . . . . . . . . . Retrieved Components . | . . . . . . . . . . . . Parts Scanalyzed . | . . . . . . . . . . . . Part Schematics Acquired . | . . . . . . . . . . . . Parts Damaged . | . . . . . . . . . . . . Bothacking | -11 -10 -9 -8 -7 -6 -5 -4 -4 -4 -4 -4 ------------ Run | Yrd Mat Mat Mat Fac Fac Fac Fac Ext Cet Arc Hub Used RIF Installer . | . . . . . . . . . . . . Robots Hacked 1 | . . . . . . . . 1 . . . Non-combat 1 | . . . . . . . . 1 . . . Combat . | . . . . . . . . . . . . Robot Hacks Applied 1 | . . . . . . . . 1 . . . parse_system 1 | . . . . . . . . 1 . . . Relay Couplers Released . | . . . . . . . . . . . . Fabnet Peak Effective % . | . . . . . . . . . . . . Robots Rewired 7 | . . . . . . . . 7 . . . Allies Hacked . | . . . . . . . . . . . . Hacks Repelled . | . . . . . . . . . . . . Allies | -11 -10 -9 -8 -7 -6 -5 -4 -4 -4 -4 -4 -------- Run | Yrd Mat Mat Mat Fac Fac Fac Fac Ext Cet Arc Hub Total Allies 22 | . . . . . . 1 4 17 . . . Largest Group 12 | . . . . . . 1 5 12 12 3 2 Highest-Rated Group 585 | . . . . . . 10 198 585 492 124 88 Highest-Rated Ally 159 | . . . . . . 10 47 159 51 51 44 Total Orders . | . . . . . . . . . . . . Ally Attacks 170 | . . . . . . . 15 91 47 13 4 Total Damage 4816 | . . . . . . . 536 2546 1381 336 17 Kills 37 | . . . . . . . 3 22 7 5 . Allies Corrupted 2 | . . . . . . . 1 1 . . . Allies Melted 1 | . . . . . . . . 1 . . . Intel | -11 -10 -9 -8 -7 -6 -5 -4 -4 -4 -4 -4 ------- Run | Yrd Mat Mat Mat Fac Fac Fac Fac Ext Cet Arc Hub Robot Analysis Total . | . . . . . . . . . . . . Derelict Logs Recovered . | . . . . . . . . . . . . Drone Launches . | . . . . . . . . . . . . Drone Recoveries . | . . . . . . . . . . . . Exploration | -11 -10 -9 -8 -7 -6 -5 -4 -4 -4 -4 -4 ------------- Run | Yrd Mat Mat Mat Fac Fac Fac Fac Ext Cet Arc Hub Turns Passed 5421 | 83 415 630 419 529 573 1034 480 969 146 86 57 Spaces Moved 3476 | 54 237 323 145 296 262 616 405 678 259 92 109 Core 430 | 14 . . . . . . 111 251 . . 54 Treads 380 | . . . 62 . . 2 . 316 . . . Legs . | . . . . . . . . . . . . Wheels 2061 | 40 237 323 83 296 262 614 206 . . . . Hover . | . . . . . . . . . . . . Flight 605 | . . . . . . . 88 111 259 92 55 Fastest Speed 30 | 50 90 130 123 175 131 120 44 30 30 30 30 Average Speed 116 | 79 116 135 175 175 187 138 83 97 34 30 41 Slowest Speed 650 | 90 135 175 235 175 205 650 120 160 114 34 50 Overloaded Moves . | . . . . . . . . . . . . Propulsion Burnouts . | . . . . . . . . . . . . Robots Hopped 3 | . . . . . . . 1 . . . 2 Cave-ins Triggered . | . . . . . . . . . . . . Exploration Rate (%) 34 | 4 32 33 21 10 9 20 17 78 84 81 19 Regions Visited 11 Branch Regions 4 Pre-discovered Areas . | . . . . . . . . . . . . Known Exits Taken 8 | . . . 1 1 1 1 1 1 1 1 . Unknown Exits Taken 3 | 1 1 1 . . . . . . . . . Scrap Searched . | . . . . . . . . . . . . Spaces Dug 1 | . . . . . . 1 . . . . . Terrain Destroyed 9 | . . . . . . 6 1 2 . . . Melee . | . . . . . . . . . . . . Projectile 9 | . . . . . . 6 1 2 . . . AOE . | . . . . . . . . . . . . Terrain Rammed . | . . . . . . . . . . . . Walls Destroyed . | . . . . . . . . . . . . Machines Disabled . | . . . . . . . . . . . . Actions | -11 -10 -9 -8 -7 -6 -5 -4 -4 -4 -4 -4 --------- Run | Yrd Mat Mat Mat Fac Fac Fac Fac Ext Cet Arc Hub Total 4487 | 81 317 429 266 308 317 721 513 963 313 145 114 Wait 361 | 4 20 16 59 4 23 13 2 134 45 41 . Move 3459 | 53 236 322 144 295 261 615 402 677 258 91 105 Hop 3 | . . . . . . . 1 . . . 2 Pick Up 115 | 11 23 15 12 4 6 14 5 22 . 3 . Fast Attach 24 | . 1 2 . . 4 5 1 10 1 . . Attach 65 | 6 1 9 11 4 1 4 11 10 3 5 . Detach 8 | . . . . . . 1 . 3 3 1 . Swap 36 | . 1 11 5 . 1 8 6 4 . . . Drop 64 | . 2 7 7 1 5 12 11 17 . 1 1 Fire 218 | 7 33 47 28 . 16 41 19 26 1 . . Melee 8 | . . . . . . . . . 2 3 3 Ram 9 | . . . . . . . 6 . . . 3 Kick . | . . . . . . . . . . . . Crush . | . . . . . . . . . . . . Escape Stasis 68 | . . . . . . 8 . 60 . . . Rewire . | . . . . . . . . . . . . Trap 49 | . . . . . . . 49 . . . . Miscellaneous . | . . . . . . . . . . . . Route ------- -11/Scrapyard -10/Materials -9/Materials -8/Materials -7/Factory (discovered 2 exits: *Fac / *Low) -6/Factory (discovered 2 exits: *Fac / *Low) -5/Factory -4/Factory -4/Extension (discovered 3 exits: *Res x2 / *Cet) -4/Cetus (discovered 2 exits: *Res / *Arc) -4/Archives (discovered 2 exits: *Res / *Hub) -4/Hub_04(d) (discovered 4 exits: *Res x4) History --------- Turn | Location | Event 7 | -11/Scrapyard | Discovered new exit (range 15) 84 | -11/Scrapyard | Entered Materials 323 | -10/Materials | Build established: Mutant 478 | -10/Materials | Discovered new exit (range 15) 499 | -10/Materials | Entered another Materials area 499 | -9/Materials | Evolved 2 slots: Utility x2 614 | -9/Materials | Lost 3 parts (1p2n) 909 | -9/Materials | Lost 4 parts (2n2u) 1090 | -9/Materials | Discovered new exit (range 10) 1129 | -9/Materials | Entered another Materials area 1129 | -8/Materials | Evolved 2 slots: Propulsion x1, Utility x1 1435 | -8/Materials | Discovered new exit (range 15) 1444 | -8/Materials | Build established: Scavenger-Skirmisher 1533 | -8/Materials | Found Prototype Device 1545 | -8/Materials | Lost 9 parts (2p2n3u2w) 1546 | -8/Materials | Identified exit to Factory 1548 | -8/Materials | Entered Factory 1548 | -7/Factory | Evolved 2 slots: Propulsion x1, Utility x1 1941 | -7/Factory | Discovered new exit (range 15) 1968 | -7/Factory | Identified exit to Lower Caves 2072 | -7/Factory | Discovered new exit (range 4) 2075 | -7/Factory | Identified exit to Factory 2077 | -7/Factory | Entered another Factory area 2077 | -6/Factory | Evolved 2 slots: Power x1, Utility x1 2432 | -6/Factory | Discovered new exit (range 10) 2448 | -6/Factory | Identified exit to Lower Caves 2638 | -6/Factory | Discovered new exit (range 8) 2649 | -6/Factory | Identified exit to Factory 2650 | -6/Factory | Entered another Factory area 2650 | -5/Factory | Evolved 2 slots: Utility x1, Weapon x1 3018 | -5/Factory | Lost 3 parts (1n2w) 3586 | -5/Factory | Build established: Scavenger-Gunner 3676 | -5/Factory | Discovered new exit (range 9) 3683 | -5/Factory | Identified exit to Factory 3684 | -5/Factory | Entered another Factory area 3684 | -4/Factory | Accompanied by 1 ally 3684 | -4/Factory | Evolved 2 slots: Utility x2 4077 | -4/Factory | Lost 3 allies 4138 | -4/Factory | Lost 10 parts (1p3n5u1w) 4162 | -4/Factory | Discovered new exit (range 6) 4163 | -4/Factory | Identified exit to Extension 4164 | -4/Factory | Entered Extension 4187 | -4/Extension | Rescued a captive Derelict 4190 | -4/Extension | Rescued a captive Derelict 4314 | -4/Extension | Rescued a captive Derelict 4315 | -4/Extension | Rescued a captive Derelict 4340 | -4/Extension | Rescued a captive Derelict 4357 | -4/Extension | Rescued A7 4366 | -4/Extension | Rescued a captive Derelict 4395 | -4/Extension | Spotted B-86 Titan 4406 | -4/Extension | Build established: Hacker-Mutant 4444 | -4/Extension | Allies destroyed B-86 Titan 4447 | -4/Extension | Spotted B-86 Titan 4458 | -4/Extension | Allies destroyed B-86 Titan 4644 | -4/Extension | Discovered new exit (range 3) 4646 | -4/Extension | Identified exit to Research 4684 | -4/Extension | Rescued a captive Derelict 4685 | -4/Extension | Rescued a captive Derelict 4756 | -4/Extension | Identified exit to Cetus 4864 | -4/Extension | Extracted ID and sensor layout for unrecognized location from A7's data core 4870 | -4/Extension | Found Prototype Protection 4915 | -4/Extension | Lost 4 allies 4952 | -4/Extension | Rescued a captive Derelict 5042 | -4/Extension | Discovered exit to Research (range 10) 5133 | -4/Extension | Entered Cetus 5133 | -4/Cetus | Accompanied by 12 allies 5138 | -4/Cetus | Spotted Cetus Guard 5138 | -4/Cetus | Spotted Cetus Guard 5138 | -4/Cetus | Spotted Cetus Guard 5146 | -4/Cetus | Discovered exit to Research (range 16) 5152 | -4/Cetus | Spotted Cetus Guard 5154 | -4/Cetus | Identified Med. Regenerative Plating 5159 | -4/Cetus | Allies destroyed Cetus Guard 5206 | -4/Cetus | Lost 7 allies 5242 | -4/Cetus | Discovered new exit (range 15) 5247 | -4/Cetus | Identified exit to Archives 5279 | -4/Cetus | Entered Archives 5279 | -4/Archives | Accompanied by 3 allies 5296 | -4/Archives | Core integrity fell below 50% 5312 | -4/Archives | Unable to access archive contents 5314 | -4/Archives | Discovered exit to Research (range 14) 5317 | -4/Archives | Unable to access archive contents 5331 | -4/Archives | Unable to access archive contents 5332 | -4/Archives | Discovered new exit (range 13) 5336 | -4/Archives | Identified exit to Hub_04(d) 5365 | -4/Archives | Entered Hub_04(d) 5365 | -4/Hub_04(d) | Accompanied by 2 allies 5411 | -4/Hub_04(d) | Core integrity fell below 20% 5422 | -4/Hub_04(d) | Destroyed by C-35 Carver with Carbide Saw Last Messages --------------- 05392_ System corrupted: Field Propulsion Array rejected. 05392_ K-01 Serf collects debris. 05397_ U-05 Engineer exits Transfer Station. 05397_ Imp. System Restoration Module destroyed. 05398_ Penetrated by Slug. 05398_ Knocked back. 05403_ Slammed into R-10 Processor. 05408_ System Shield severed. 05413_ Knocked back. 05415_ Adv. System Shield severed. 05416_ Slammed into C-35 Carver. 05416_ Machine Analyzer broken. 05416_ Destabilizing: Short circuit. 05417_ Slammed into C-35 Carver. 05417_ Destabilizing: System corrupted (+2). 05418_ Adv. Hacking Suite severed. 05420_ Broken Machine Analyzer severed. 05420_ Penetrated by Slug. Map ----- +----------------------------------------------------+ | ???????????????????????????